[Event "*** SCC Grand Prix: Titled Tuesday Blitz"]
[Site "Chess.com"]
[Date "2020.08.11"]
[Round "4"]
[White "slavenok"]
[Black "VladimirBugayev"]
[Result "1-0"]
[WhiteElo "2714"]
[BlackElo "2338"]
[TimeControl "180+1"]
[EndTime "10:36:18 PDT"]
[Termination "slavenok won by checkmate"]

1. e4 {[%clk 0:03:00.9]} 1... c6 {[%clk 0:02:59.2]} 2. d4 {[%clk 0:03:00.6]}
2... d5 {[%clk 0:02:59.2]} 3. exd5 {[%clk 0:03:01.5]} 3... cxd5 {[%clk 0:02:59]}
4. Nf3 {[%clk 0:03:02.4]} 4... a6 {[%clk 0:02:52.4]} 5. c4 {[%clk 0:03:02]} 5...
Nf6 {[%clk 0:02:48.3]} 6. Nc3 {[%clk 0:03:01.9]} 6... Nc6 {[%clk 0:02:46.2]} 7.
cxd5 {[%clk 0:03:01.8]} 7... Nxd5 {[%clk 0:02:45.5]} 8. Bc4 {[%clk 0:03:00.7]}
8... Nxc3 {[%clk 0:02:39.9]} 9. bxc3 {[%clk 0:03:00.1]} 9... e6 {[%clk
0:02:40.5]} 10. O-O {[%clk 0:02:59.4]} 10... Be7 {[%clk 0:02:40.9]} 11. Qe2
{[%clk 0:02:59.6]} 11... O-O {[%clk 0:02:40.9]} 12. Bd3 {[%clk 0:02:58.1]} 12...
Bf6 {[%clk 0:02:27.7]} 13. Rb1 {[%clk 0:02:55]} 13... g6 {[%clk 0:02:17.4]} 14.
Bh6 {[%clk 0:02:53.3]} 14... Re8 {[%clk 0:02:17.1]} 15. Rfe1 {[%clk 0:02:52.9]}
15... b5 {[%clk 0:02:06.7]} 16. Be4 {[%clk 0:02:51.3]} 16... Bb7 {[%clk
0:02:06]} 17. Rbd1 {[%clk 0:02:51.8]} 17... Na5 {[%clk 0:01:55.9]} 18. Bxb7
{[%clk 0:02:47.2]} 18... Nxb7 {[%clk 0:01:55.7]} 19. Ne5 {[%clk 0:02:47.3]}
19... Qc7 {[%clk 0:01:45.5]} 20. Bf4 {[%clk 0:02:42.3]} 20... Qxc3 {[%clk
0:01:37.6]} 21. Ng4 {[%clk 0:02:27.8]} 21... Bg7 {[%clk 0:01:33.8]} 22. Be5
{[%clk 0:02:27.5]} 22... Bxe5 {[%clk 0:01:10.5]} 23. Qxe5 {[%clk 0:02:26.4]}
23... f5 {[%clk 0:00:44.1]} 24. Nh6+ {[%clk 0:02:18.3]} 24... Kf8 {[%clk
0:00:43.4]} 25. Qf6# {[%clk 0:02:18.3]} 1-0

[Event "*** SCC Grand Prix: Titled Tuesday Blitz"]
[Site "Chess.com"]
[Date "2020.08.11"]
[Round "4"]
[White "igorknyazev"]
[Black "Quiet_Desperation"]
[Result "1-0"]
[WhiteElo "1948"]
[BlackElo "2259"]
[TimeControl "180+1"]
[EndTime "10:36:18 PDT"]
[Termination "igorknyazev won by resignation"]

1. e4 {[%clk 0:02:58.9]} 1... Nc6 {[%clk 0:02:58.5]} 2. f4 {[%clk 0:02:57.6]}
2... d5 {[%clk 0:02:58.4]} 3. e5 {[%clk 0:02:57.5]} 3... Bf5 {[%clk 0:02:58.3]}
4. Nf3 {[%clk 0:02:57.7]} 4... e6 {[%clk 0:02:57]} 5. Be2 {[%clk 0:02:53]} 5...
Qd7 {[%clk 0:02:53.3]} 6. O-O {[%clk 0:02:53.2]} 6... O-O-O {[%clk 0:02:53.2]}
7. d4 {[%clk 0:02:43]} 7... f6 {[%clk 0:02:53.5]} 8. a3 {[%clk 0:02:37.1]} 8...
fxe5 {[%clk 0:02:52.2]} 9. Nxe5 {[%clk 0:02:34]} 9... Nxe5 {[%clk 0:02:51.4]}
10. fxe5 {[%clk 0:02:31.6]} 10... Kb8 {[%clk 0:02:51.5]} 11. b4 {[%clk
0:02:30.5]} 11... Ne7 {[%clk 0:02:50]} 12. b5 {[%clk 0:02:27]} 12... Nc8 {[%clk
0:02:49.4]} 13. a4 {[%clk 0:02:25.9]} 13... Be7 {[%clk 0:02:49.3]} 14. a5 {[%clk
0:02:23]} 14... g5 {[%clk 0:02:49]} 15. Ba3 {[%clk 0:02:16.7]} 15... h5 {[%clk
0:02:43.4]} 16. Bxe7 {[%clk 0:02:13.3]} 16... Qxe7 {[%clk 0:02:41.9]} 17. a6
{[%clk 0:02:02.2]} 17... b6 {[%clk 0:02:37.3]} 18. Nc3 {[%clk 0:01:58.5]} 18...
g4 {[%clk 0:02:27.8]} 19. Na2 {[%clk 0:01:45.4]} 19... Rdg8 {[%clk 0:02:22.9]}
20. Qd2 {[%clk 0:01:41.6]} 20... Qd7 {[%clk 0:02:21.5]} 21. Nb4 {[%clk
0:01:38.7]} 21... Ne7 {[%clk 0:02:21.6]} 22. c4 {[%clk 0:01:35]} 22... dxc4
{[%clk 0:02:18.6]} 23. Bxc4 {[%clk 0:01:35.2]} 23... Rd8 {[%clk 0:02:06.6]} 24.
Rad1 {[%clk 0:01:29.5]} 24... h4 {[%clk 0:02:01.6]} 25. Qg5 {[%clk 0:01:19.5]}
25... Rdg8 {[%clk 0:01:55.2]} 26. Qxe7 {[%clk 0:01:18.6]} 1-0

[Event "*** SCC Grand Prix: Titled Tuesday Blitz"]
[Site "Chess.com"]
[Date "2020.08.11"]
[Round "4"]
[White "Gabix_94"]
[Black "keepitcool9499"]
[Result "1-0"]
[WhiteElo "2858"]
[BlackElo "2671"]
[TimeControl "180+1"]
[EndTime "10:36:24 PDT"]
[Termination "Gabix_94 won by checkmate"]

1. c4 {[%clk 0:03:00.9]} 1... e6 {[%clk 0:03:00.9]} 2. Nc3 {[%clk 0:02:57.8]}
2... Nf6 {[%clk 0:03:00.6]} 3. Nf3 {[%clk 0:02:56.4]} 3... d5 {[%clk 0:02:50]}
4. d4 {[%clk 0:02:56]} 4... Be7 {[%clk 0:02:48.5]} 5. Bf4 {[%clk 0:02:55]} 5...
O-O {[%clk 0:02:48.8]} 6. Qc2 {[%clk 0:02:53.4]} 6... b6 {[%clk 0:02:48.8]} 7.
cxd5 {[%clk 0:02:51.2]} 7... exd5 {[%clk 0:02:48.5]} 8. e3 {[%clk 0:02:49.5]}
8... Bb7 {[%clk 0:02:48.4]} 9. Bd3 {[%clk 0:02:49.9]} 9... Nbd7 {[%clk
0:02:48.4]} 10. O-O {[%clk 0:02:48.3]} 10... c5 {[%clk 0:02:48.8]} 11. Rad1
{[%clk 0:02:44.4]} 11... Rc8 {[%clk 0:02:47.6]} 12. h3 {[%clk 0:02:41.8]} 12...
c4 {[%clk 0:02:41.1]} 13. Bf5 {[%clk 0:02:41.3]} 13... a6 {[%clk 0:02:38.8]} 14.
Ne5 {[%clk 0:02:38.1]} 14... b5 {[%clk 0:02:34.9]} 15. Nxd7 {[%clk 0:02:34.5]}
15... Nxd7 {[%clk 0:02:35.8]} 16. Bxh7+ {[%clk 0:02:34.7]} 16... Kh8 {[%clk
0:02:35.3]} 17. Bf5 {[%clk 0:02:27.4]} 17... Rc6 {[%clk 0:02:33.1]} 18. Nxd5
{[%clk 0:02:26.8]} 18... Nf6 {[%clk 0:02:30.3]} 19. Nxe7 {[%clk 0:02:21]} 19...
Qxe7 {[%clk 0:02:29.8]} 20. d5 {[%clk 0:02:21]} 20... Rc5 {[%clk 0:02:28.7]} 21.
e4 {[%clk 0:02:15.5]} 21... g6 {[%clk 0:02:26.6]} 22. d6 {[%clk 0:02:08.4]}
22... Qd8 {[%clk 0:02:17.5]} 23. Be3 {[%clk 0:02:01.7]} 23... gxf5 {[%clk
0:02:01.2]} 24. Bxc5 {[%clk 0:02:00.5]} 24... Nxe4 {[%clk 0:02:01.3]} 25. Be3
{[%clk 0:01:55.2]} 25... Rg8 {[%clk 0:02:00.5]} 26. f3 {[%clk 0:01:55.4]} 26...
Nxd6 {[%clk 0:01:58.4]} 27. Qc3+ {[%clk 0:01:55.1]} 27... Kh7 {[%clk 0:01:58]}
28. Qe5 {[%clk 0:01:53.8]} 28... Qh4 {[%clk 0:01:46.9]} 29. Rxd6 {[%clk
0:01:49.6]} 29... Qxh3 {[%clk 0:01:45.8]} 30. Rh6+ {[%clk 0:01:49.9]} 30... Qxh6
{[%clk 0:01:43.8]} 31. Bxh6 {[%clk 0:01:50.8]} 31... Kxh6 {[%clk 0:01:44.1]} 32.
Qxf5 {[%clk 0:01:49.9]} 32... Rg7 {[%clk 0:01:39]} 33. Qf6+ {[%clk 0:01:49.4]}
33... Kh7 {[%clk 0:01:38.3]} 34. Kf2 {[%clk 0:01:49.4]} 34... Kg8 {[%clk
0:01:37.6]} 35. Re1 {[%clk 0:01:48.8]} 35... Kh7 {[%clk 0:01:37.6]} 36. Rh1+
{[%clk 0:01:48.4]} 36... Kg8 {[%clk 0:01:38]} 37. Qd8# {[%clk 0:01:49]} 1-0

[Event "*** SCC Grand Prix: Titled Tuesday Blitz"]
[Site "Chess.com"]
[Date "2020.08.11"]
[Round "4"]
[White "Tssunami"]
[Black "vrekhson"]
[Result "0-1"]
[WhiteElo "2362"]
[BlackElo "2156"]
[TimeControl "180+1"]
[EndTime "10:36:24 PDT"]
[Termination "vrekhson won by resignation"]

1. Nf3 {[%clk 0:02:58.5]} 1... c5 {[%clk 0:02:55.9]} 2. b3 {[%clk 0:02:58.6]}
2... Nc6 {[%clk 0:02:55.8]} 3. Bb2 {[%clk 0:02:58.8]} 3... Nf6 {[%clk
0:02:56.2]} 4. e3 {[%clk 0:02:58.9]} 4... d6 {[%clk 0:02:56.7]} 5. Be2 {[%clk
0:02:58.1]} 5... e5 {[%clk 0:02:57]} 6. O-O {[%clk 0:02:55.9]} 6... Be7 {[%clk
0:02:56.5]} 7. c4 {[%clk 0:02:53.6]} 7... O-O {[%clk 0:02:56.7]} 8. Nc3 {[%clk
0:02:53.5]} 8... h6 {[%clk 0:02:55.5]} 9. d3 {[%clk 0:02:53.1]} 9... a6 {[%clk
0:02:53.9]} 10. a3 {[%clk 0:02:50.8]} 10... Rb8 {[%clk 0:02:53.7]} 11. Qc2
{[%clk 0:02:50]} 11... b5 {[%clk 0:02:53.8]} 12. cxb5 {[%clk 0:02:50.2]} 12...
axb5 {[%clk 0:02:54.5]} 13. a4 {[%clk 0:02:43.6]} 13... b4 {[%clk 0:02:53.2]}
14. Ne4 {[%clk 0:02:35.5]} 14... Bf5 {[%clk 0:02:50.7]} 15. Nfd2 {[%clk
0:02:26.8]} 15... Na5 {[%clk 0:02:43.7]} 16. Bf3 {[%clk 0:02:20.9]} 16... d5
{[%clk 0:02:38.4]} 17. Nxf6+ {[%clk 0:02:18.9]} 17... Bxf6 {[%clk 0:02:34.6]}
18. Qxc5 {[%clk 0:02:18.5]} 18... Bxd3 {[%clk 0:02:32]} 19. Rfc1 {[%clk
0:02:03.7]} 19... e4 {[%clk 0:02:18.6]} 20. Bxf6 {[%clk 0:02:02.4]} 20... Qxf6
{[%clk 0:02:19.5]} 21. Qxa5 {[%clk 0:01:58]} 21... exf3 {[%clk 0:02:19.7]} 22.
Nxf3 {[%clk 0:01:57.3]} 22... Be4 {[%clk 0:02:14.2]} 23. Nd4 {[%clk 0:01:51.5]}
23... Rfc8 {[%clk 0:02:12.3]} 24. Rxc8+ {[%clk 0:01:42.6]} 24... Rxc8 {[%clk
0:02:13.2]} 25. Qxb4 {[%clk 0:01:42.8]} 25... Qg5 {[%clk 0:02:05]} 26. f3 {[%clk
0:01:15]} 26... Qxe3+ {[%clk 0:02:03.8]} 27. Kh1 {[%clk 0:01:15.5]} 27... Rc1+
{[%clk 0:02:02.1]} 0-1

[Event "*** SCC Grand Prix: Titled Tuesday Blitz"]
[Site "Chess.com"]
[Date "2020.08.11"]
[Round "4"]
[White "MoreChessJulia"]
[Black "ethylalcohol"]
[Result "0-1"]
[WhiteElo "1851"]
[BlackElo "2205"]
[TimeControl "180+1"]
[EndTime "10:36:25 PDT"]
[Termination "ethylalcohol won by checkmate"]

1. d4 {[%clk 0:03:00]} 1... Nf6 {[%clk 0:02:59.7]} 2. c4 {[%clk 0:02:59.7]} 2...
g6 {[%clk 0:02:59.8]} 3. f3 {[%clk 0:02:58.4]} 3... d5 {[%clk 0:02:58.8]} 4.
cxd5 {[%clk 0:02:58.2]} 4... Nxd5 {[%clk 0:02:57.7]} 5. e4 {[%clk 0:02:58.6]}
5... Nf6 {[%clk 0:02:57.6]} 6. Nc3 {[%clk 0:02:58.6]} 6... Bg7 {[%clk 0:02:55]}
7. Be3 {[%clk 0:02:58.6]} 7... O-O {[%clk 0:02:53.6]} 8. Qd2 {[%clk 0:02:58.8]}
8... Re8 {[%clk 0:02:52.8]} 9. Bc4 {[%clk 0:02:57.9]} 9... e5 {[%clk 0:02:48.3]}
10. d5 {[%clk 0:02:53.3]} 10... c6 {[%clk 0:02:44.6]} 11. h4 {[%clk 0:02:52.3]}
11... cxd5 {[%clk 0:02:41.2]} 12. Nxd5 {[%clk 0:02:52]} 12... Nxd5 {[%clk
0:02:33]} 13. Bxd5 {[%clk 0:02:49.7]} 13... Nc6 {[%clk 0:02:30.1]} 14. h5 {[%clk
0:02:46.7]} 14... Be6 {[%clk 0:02:27.1]} 15. hxg6 {[%clk 0:02:38.4]} 15... hxg6
{[%clk 0:02:25.6]} 16. Bh6 {[%clk 0:02:37.8]} 16... Bf6 {[%clk 0:02:03.3]} 17.
O-O-O {[%clk 0:02:34.2]} 17... Nd4 {[%clk 0:01:56.2]} 18. Bxe6 {[%clk
0:02:30.3]} 18... Rxe6 {[%clk 0:01:54.9]} 19. Ne2 {[%clk 0:02:24.6]} 19... Rc6+
{[%clk 0:01:54.2]} 20. Kb1 {[%clk 0:02:24.3]} 20... Rac8 {[%clk 0:01:28.8]} 21.
Nxd4 {[%clk 0:02:22.2]} 21... exd4 {[%clk 0:01:28]} 22. Qf4 {[%clk 0:02:20.5]}
22... Qe7 {[%clk 0:01:17.4]} 23. Qh2 {[%clk 0:02:17.2]} 23... Qb4 {[%clk
0:01:08.9]} 24. Rd3 {[%clk 0:02:11.2]} 24... Rc2 {[%clk 0:01:07.4]} 25. b3
{[%clk 0:02:10.3]} 25... Qa3 {[%clk 0:01:06.5]} 26. Bc1 {[%clk 0:02:06.9]} 26...
Qxa2# {[%clk 0:01:06.2]} 0-1

[Event "*** SCC Grand Prix: Titled Tuesday Blitz"]
[Site "Chess.com"]
[Date "2020.08.11"]
[Round "4"]
[White "KatarinaOstojic"]
[Black "tlomigtlis"]
[Result "0-1"]
[WhiteElo "2237"]
[BlackElo "2435"]
[TimeControl "180+1"]
[EndTime "10:36:31 PDT"]
[Termination "tlomigtlis won by resignation"]

1. d4 {[%clk 0:03:00.9]} 1... d5 {[%clk 0:03:00.3]} 2. Nf3 {[%clk 0:03:00.5]}
2... Nf6 {[%clk 0:02:59.5]} 3. c4 {[%clk 0:03:01]} 3... c6 {[%clk 0:02:59.5]} 4.
Nc3 {[%clk 0:03:01.5]} 4... e6 {[%clk 0:02:59.1]} 5. e3 {[%clk 0:03:01.4]} 5...
a6 {[%clk 0:02:58.7]} 6. c5 {[%clk 0:02:53]} 6... Nbd7 {[%clk 0:02:58.2]} 7. Be2
{[%clk 0:02:51.8]} 7... Qc7 {[%clk 0:02:57.6]} 8. O-O {[%clk 0:02:51.2]} 8... e5
{[%clk 0:02:58]} 9. b4 {[%clk 0:02:41.5]} 9... Be7 {[%clk 0:02:52.4]} 10. Bb2
{[%clk 0:02:41]} 10... O-O {[%clk 0:02:49.7]} 11. Rc1 {[%clk 0:02:35.9]} 11...
Re8 {[%clk 0:02:45.2]} 12. Qc2 {[%clk 0:02:33.6]} 12... e4 {[%clk 0:02:38.8]}
13. Nd2 {[%clk 0:02:24.2]} 13... Nf8 {[%clk 0:02:39]} 14. a4 {[%clk 0:02:21.6]}
14... Ng6 {[%clk 0:02:38.7]} 15. b5 {[%clk 0:02:15.7]} 15... axb5 {[%clk
0:02:38.7]} 16. axb5 {[%clk 0:02:16.6]} 16... Ng4 {[%clk 0:02:33]} 17. Bxg4
{[%clk 0:02:10.5]} 17... Bxg4 {[%clk 0:02:33.9]} 18. h3 {[%clk 0:02:06.4]} 18...
Be6 {[%clk 0:02:32.3]} 19. Ra1 {[%clk 0:02:03.8]} 19... Qd7 {[%clk 0:02:29.1]}
20. b6 {[%clk 0:01:55.5]} 20... Bxh3 {[%clk 0:02:09.8]} 21. gxh3 {[%clk
0:01:53.3]} 21... Qxh3 {[%clk 0:02:10.7]} 22. Ncxe4 {[%clk 0:01:42.6]} 22... Nh4
{[%clk 0:02:08.3]} 0-1

[Event "*** SCC Grand Prix: Titled Tuesday Blitz"]
[Site "Chess.com"]
[Date "2020.08.11"]
[Round "4"]
[White "johnathan113"]
[Black "Noam_Vitenberg"]
[Result "1-0"]
[WhiteElo "2697"]
[BlackElo "2497"]
[TimeControl "180+1"]
[EndTime "10:36:34 PDT"]
[Termination "johnathan113 won by checkmate"]

1. d4 {[%clk 0:03:00.9]} 1... d5 {[%clk 0:02:56.2]} 2. Nc3 {[%clk 0:03:01.3]}
2... Nf6 {[%clk 0:02:54.2]} 3. Bf4 {[%clk 0:03:00.5]} 3... Bf5 {[%clk
0:02:52.9]} 4. f3 {[%clk 0:03:00.3]} 4... e6 {[%clk 0:02:52.8]} 5. g4 {[%clk
0:03:00.8]} 5... Bg6 {[%clk 0:02:52.7]} 6. h4 {[%clk 0:03:01.4]} 6... h6 {[%clk
0:02:51.9]} 7. e3 {[%clk 0:03:01.9]} 7... Bd6 {[%clk 0:02:50.3]} 8. h5 {[%clk
0:03:00.1]} 8... Bh7 {[%clk 0:02:50.5]} 9. Bd3 {[%clk 0:03:00.1]} 9... Bxd3
{[%clk 0:02:48.8]} 10. Qxd3 {[%clk 0:03:01]} 10... Nbd7 {[%clk 0:02:25.9]} 11.
O-O-O {[%clk 0:03:00]} 11... a6 {[%clk 0:02:23.3]} 12. Nh3 {[%clk 0:02:58.6]}
12... Rc8 {[%clk 0:02:20]} 13. Kb1 {[%clk 0:02:55.8]} 13... b5 {[%clk
0:02:19.9]} 14. e4 {[%clk 0:02:51.2]} 14... Bxf4 {[%clk 0:02:16.8]} 15. Nxf4
{[%clk 0:02:50.9]} 15... dxe4 {[%clk 0:02:11.9]} 16. Nxe4 {[%clk 0:02:45.3]}
16... O-O {[%clk 0:02:03.6]} 17. Rdg1 {[%clk 0:02:14.9]} 17... c5 {[%clk
0:01:53.9]} 18. g5 {[%clk 0:02:12.8]} 18... Nxe4 {[%clk 0:01:52.9]} 19. gxh6
{[%clk 0:02:11.3]} 19... Ng5 {[%clk 0:01:47.3]} 20. hxg7 {[%clk 0:02:05.7]}
20... Kxg7 {[%clk 0:01:45.7]} 21. Nxe6+ {[%clk 0:02:03.3]} 21... fxe6 {[%clk
0:01:44.4]} 22. Qg6+ {[%clk 0:02:03.2]} 22... Kh8 {[%clk 0:01:42.5]} 23. Qh6+
{[%clk 0:02:03]} 23... Kg8 {[%clk 0:01:35.4]} 24. Rxg5+ {[%clk 0:02:01.1]} 24...
Qxg5 {[%clk 0:01:18.1]} 25. Qxg5+ {[%clk 0:02:02]} 25... Kf7 {[%clk 0:01:18.7]}
26. h6 {[%clk 0:01:58.6]} 26... Rg8 {[%clk 0:01:18.4]} 27. Qh5+ {[%clk
0:01:58.9]} 27... Ke7 {[%clk 0:01:18.8]} 28. h7 {[%clk 0:01:59.8]} 28... Rh8
{[%clk 0:01:19.3]} 29. Rg1 {[%clk 0:01:57.4]} 29... Nf6 {[%clk 0:01:16.2]} 30.
Rg7+ {[%clk 0:01:57.3]} 30... Kd6 {[%clk 0:01:16]} 31. Qe5+ {[%clk 0:01:55.2]}
31... Kc6 {[%clk 0:01:15.3]} 32. Qxe6# {[%clk 0:01:55.7]} 1-0

[Event "*** SCC Grand Prix: Titled Tuesday Blitz"]
[Site "Chess.com"]
[Date "2020.08.11"]
[Round "4"]
[White "tptagain"]
[Black "rududuyk"]
[Result "1-0"]
[WhiteElo "2912"]
[BlackElo "2121"]
[TimeControl "180+1"]
[EndTime "10:36:36 PDT"]
[Termination "tptagain won by resignation"]

1. d4 {[%clk 0:03:00.9]} 1... e6 {[%clk 0:02:59.1]} 2. Nf3 {[%clk 0:03:01.4]}
2... f5 {[%clk 0:02:59]} 3. Bg5 {[%clk 0:03:01.3]} 3... Be7 {[%clk 0:02:58.1]}
4. Bxe7 {[%clk 0:03:00.7]} 4... Qxe7 {[%clk 0:02:59]} 5. e3 {[%clk 0:02:58.4]}
5... Nf6 {[%clk 0:02:58.1]} 6. c4 {[%clk 0:02:56.6]} 6... b6 {[%clk 0:02:54.5]}
7. Nc3 {[%clk 0:02:56.2]} 7... Bb7 {[%clk 0:02:54.7]} 8. Qc2 {[%clk 0:02:55.5]}
8... Ne4 {[%clk 0:02:42.5]} 9. Bd3 {[%clk 0:02:50.8]} 9... Nxc3 {[%clk
0:02:41.4]} 10. Qxc3 {[%clk 0:02:50.5]} 10... a5 {[%clk 0:02:40.9]} 11. a3
{[%clk 0:02:28.4]} 11... O-O {[%clk 0:02:29.8]} 12. Be2 {[%clk 0:02:15.4]} 12...
Rf6 {[%clk 0:02:10.3]} 13. d5 {[%clk 0:02:02.4]} 13... exd5 {[%clk 0:01:56.4]}
14. cxd5 {[%clk 0:02:03.3]} 14... Bxd5 {[%clk 0:01:41.2]} 15. Qxc7 {[%clk
0:01:59.3]} 15... Na6 {[%clk 0:01:14.1]} 16. Bxa6 {[%clk 0:01:47.5]} 16... Rc6
{[%clk 0:01:10.3]} 17. Qe5 {[%clk 0:01:29.5]} 17... Re6 {[%clk 0:01:01.1]} 18.
Qxd5 {[%clk 0:01:27.7]} 1-0

[Event "*** SCC Grand Prix: Titled Tuesday Blitz"]
[Site "Chess.com"]
[Date "2020.08.11"]
[Round "4"]
[White "parintele_chess"]
[Black "Vsevolod_Ovchinnikov"]
[Result "0-1"]
[WhiteElo "2111"]
[BlackElo "2448"]
[TimeControl "180+1"]
[EndTime "10:36:40 PDT"]
[Termination "Vsevolod_Ovchinnikov won by resignation"]

1. d4 {[%clk 0:03:00]} 1... Nf6 {[%clk 0:02:59.8]} 2. c4 {[%clk 0:03:00.2]} 2...
g6 {[%clk 0:03:00.1]} 3. Nc3 {[%clk 0:03:00.3]} 3... d5 {[%clk 0:03:00.7]} 4.
cxd5 {[%clk 0:03:01.2]} 4... Nxd5 {[%clk 0:03:01.6]} 5. e4 {[%clk 0:03:01.9]}
5... Nxc3 {[%clk 0:03:02]} 6. bxc3 {[%clk 0:03:02.8]} 6... Bg7 {[%clk
0:03:02.7]} 7. Nf3 {[%clk 0:03:02.7]} 7... c5 {[%clk 0:03:02.6]} 8. Be3 {[%clk
0:03:01.6]} 8... O-O {[%clk 0:03:01.9]} 9. Rc1 {[%clk 0:03:00.8]} 9... Qa5
{[%clk 0:03:01.7]} 10. Qd2 {[%clk 0:03:00.8]} 10... Rd8 {[%clk 0:03:01.1]} 11.
Be2 {[%clk 0:02:56.3]} 11... Nc6 {[%clk 0:02:54]} 12. d5 {[%clk 0:02:47.7]}
12... e6 {[%clk 0:02:53.2]} 13. c4 {[%clk 0:02:45.8]} 13... Nb4 {[%clk
0:02:52.7]} 14. O-O {[%clk 0:02:37]} 14... b6 {[%clk 0:02:47.7]} 15. Bg5 {[%clk
0:01:46.3]} 15... f6 {[%clk 0:01:46.1]} 16. Bh6 {[%clk 0:01:35]} 16... Qxa2
{[%clk 0:01:41]} 17. Qxa2 {[%clk 0:01:27.9]} 17... Nxa2 {[%clk 0:01:41.9]} 18.
Ra1 {[%clk 0:01:16.6]} 18... Nc3 {[%clk 0:01:35]} 19. Bxg7 {[%clk 0:01:14.9]}
19... Nxe2+ {[%clk 0:01:34.6]} 20. Kh1 {[%clk 0:01:15.8]} 20... Kxg7 {[%clk
0:01:35.5]} 0-1

[Event "*** SCC Grand Prix: Titled Tuesday Blitz"]
[Site "Chess.com"]
[Date "2020.08.11"]
[Round "4"]
[White "LaPorfia"]
[Black "NateSolon"]
[Result "0-1"]
[WhiteElo "2254"]
[BlackElo "2524"]
[TimeControl "180+1"]
[EndTime "10:36:41 PDT"]
[Termination "NateSolon won by resignation"]

1. d4 {[%clk 0:03:00.9]} 1... Nf6 {[%clk 0:02:58.9]} 2. Nf3 {[%clk 0:03:00.7]}
2... d5 {[%clk 0:02:58.6]} 3. Bf4 {[%clk 0:03:00.4]} 3... c5 {[%clk 0:02:57.8]}
4. e3 {[%clk 0:03:00.2]} 4... Nc6 {[%clk 0:02:57.4]} 5. c3 {[%clk 0:03:00.4]}
5... cxd4 {[%clk 0:02:54.1]} 6. exd4 {[%clk 0:03:00.1]} 6... Bf5 {[%clk
0:02:53.6]} 7. Nbd2 {[%clk 0:02:57.9]} 7... e6 {[%clk 0:02:53.2]} 8. Ne5 {[%clk
0:02:57.2]} 8... Nxe5 {[%clk 0:02:49.5]} 9. dxe5 {[%clk 0:02:56.7]} 9... Nd7
{[%clk 0:02:49.4]} 10. Qb3 {[%clk 0:02:35.2]} 10... Bc5 {[%clk 0:02:40]} 11. Be2
{[%clk 0:02:13.7]} 11... O-O {[%clk 0:02:38.1]} 12. O-O {[%clk 0:02:12.8]} 12...
Qc7 {[%clk 0:02:33.5]} 13. Rae1 {[%clk 0:01:41.4]} 13... Nxe5 {[%clk 0:02:25.6]}
14. c4 {[%clk 0:01:31.3]} 14... d4 {[%clk 0:02:15.6]} 15. Qg3 {[%clk 0:01:28]}
15... Bd6 {[%clk 0:02:02.5]} 16. c5 {[%clk 0:01:01.3]} 16... Nf3+ {[%clk
0:01:54.3]} 17. Nxf3 {[%clk 0:00:56.8]} 17... Bxf4 {[%clk 0:01:55.2]} 18. Qh4
{[%clk 0:00:56.2]} 18... d3 {[%clk 0:01:51]} 19. Bd1 {[%clk 0:00:50.7]} 19... d2
{[%clk 0:01:46.9]} 20. Re2 {[%clk 0:00:48.4]} 20... Bd3 {[%clk 0:01:46.5]} 0-1

[Event "*** SCC Grand Prix: Titled Tuesday Blitz"]
[Site "Chess.com"]
[Date "2020.08.11"]
[Round "4"]
[White "MarcoRiehle"]
[Black "Beca95"]
[Result "0-1"]
[WhiteElo "2739"]
[BlackElo "2891"]
[TimeControl "180+1"]
[EndTime "10:36:57 PDT"]
[Termination "Beca95 won by resignation"]

1. e4 {[%clk 0:03:00.9]} 1... c5 {[%clk 0:02:59]} 2. a3 {[%clk 0:03:00.2]} 2...
Nf6 {[%clk 0:02:55.2]} 3. e5 {[%clk 0:03:00]} 3... Nd5 {[%clk 0:02:55.4]} 4. c4
{[%clk 0:02:59.8]} 4... Nc7 {[%clk 0:02:50.4]} 5. b4 {[%clk 0:02:58.8]} 5... d6
{[%clk 0:02:50.6]} 6. Nf3 {[%clk 0:02:56.6]} 6... dxe5 {[%clk 0:02:49.9]} 7. d3
{[%clk 0:02:49.9]} 7... Nc6 {[%clk 0:02:48.4]} 8. b5 {[%clk 0:02:47]} 8... Nd4
{[%clk 0:02:46.9]} 9. Nxe5 {[%clk 0:02:40.6]} 9... g6 {[%clk 0:02:47.2]} 10. Qa4
{[%clk 0:02:06.8]} 10... b6 {[%clk 0:02:42.8]} 11. Bb2 {[%clk 0:02:01.5]} 11...
Bg7 {[%clk 0:02:39.8]} 12. Nc6 {[%clk 0:02:00.8]} 12... Qd6 {[%clk 0:02:38.2]}
13. Nd2 {[%clk 0:01:50.9]} 13... Nf3+ {[%clk 0:02:17.8]} 14. gxf3 {[%clk
0:01:41.4]} 14... Bxb2 {[%clk 0:02:16.9]} 15. Ne4 {[%clk 0:01:41.9]} 15... Qe6
{[%clk 0:02:09.4]} 16. Rb1 {[%clk 0:01:39.7]} 16... Bc3+ {[%clk 0:02:07.1]} 17.
Kd1 {[%clk 0:01:36.2]} 17... Bg7 {[%clk 0:02:06.9]} 18. h4 {[%clk 0:01:33.1]}
18... f5 {[%clk 0:02:02.8]} 19. Ng5 {[%clk 0:01:26.8]} 19... Qd6 {[%clk
0:02:00.2]} 20. h5 {[%clk 0:01:21.4]} 20... h6 {[%clk 0:01:59.6]} 21. Nh3 {[%clk
0:01:10.1]} 21... g5 {[%clk 0:01:59.9]} 22. Kc2 {[%clk 0:00:53.2]} 22... a6
{[%clk 0:01:58.5]} 23. Qb3 {[%clk 0:00:40]} 23... axb5 {[%clk 0:01:55.4]} 24.
cxb5 {[%clk 0:00:40.4]} 24... Be6 {[%clk 0:01:55.6]} 0-1

[Event "*** SCC Grand Prix: Titled Tuesday Blitz"]
[Site "Chess.com"]
[Date "2020.08.11"]
[Round "4"]
[White "rasmussvane"]
[Black "elcandado"]
[Result "1-0"]
[WhiteElo "2875"]
[BlackElo "2545"]
[TimeControl "180+1"]
[EndTime "10:37:00 PDT"]
[Termination "rasmussvane won by resignation"]

1. Nf3 {[%clk 0:03:00.9]} 1... Nf6 {[%clk 0:02:59.2]} 2. g3 {[%clk 0:03:01.1]}
2... d5 {[%clk 0:02:58.6]} 3. Bg2 {[%clk 0:03:01.3]} 3... Bf5 {[%clk 0:02:58.2]}
4. O-O {[%clk 0:03:01.3]} 4... e6 {[%clk 0:02:57.6]} 5. c4 {[%clk 0:03:00.5]}
5... c6 {[%clk 0:02:57.2]} 6. Qb3 {[%clk 0:03:00.5]} 6... Qb6 {[%clk 0:02:56.6]}
7. d3 {[%clk 0:03:00.9]} 7... Nbd7 {[%clk 0:02:53.7]} 8. cxd5 {[%clk 0:03:01.2]}
8... cxd5 {[%clk 0:02:51.1]} 9. Nc3 {[%clk 0:03:00.9]} 9... Qxb3 {[%clk
0:02:44.4]} 10. axb3 {[%clk 0:03:01.8]} 10... a6 {[%clk 0:02:42.9]} 11. Bf4
{[%clk 0:02:47.9]} 11... h6 {[%clk 0:02:32.3]} 12. Rfc1 {[%clk 0:02:47.6]} 12...
Bb4 {[%clk 0:02:09.9]} 13. Nb5 {[%clk 0:02:42.3]} 13... Ke7 {[%clk 0:01:59.7]}
14. Nbd4 {[%clk 0:02:36.7]} 14... Bh7 {[%clk 0:01:55]} 15. Rc7 {[%clk
0:02:35.9]} 15... Bd6 {[%clk 0:01:42.3]} 16. Rxb7 {[%clk 0:02:31]} 16... Bxf4
{[%clk 0:01:34.7]} 17. gxf4 {[%clk 0:02:31.9]} 17... Kd6 {[%clk 0:01:34.5]} 18.
b4 {[%clk 0:02:12.9]} 18... Rhb8 {[%clk 0:01:13.1]} 19. Rxb8 {[%clk 0:02:06.6]}
19... Nxb8 {[%clk 0:01:12.6]} 20. Ne5 {[%clk 0:01:59]} 20... Bg6 {[%clk
0:01:09.5]} 21. Bh3 {[%clk 0:01:44]} 21... Bh5 {[%clk 0:01:06]} 22. Kf1 {[%clk
0:01:27.4]} 22... Ra7 {[%clk 0:01:04.2]} 23. Nb5+ {[%clk 0:01:26.4]} 1-0